[Event "Early Titled Tuesday Blitz | February 8 2022"]
[White "Vlassov, Nikolai"]
[Black "Cunjalo, Faris"]
[WhiteFideId "4103360"]
[BlackFideId "14410710"]
[WhiteElo "2407"]
[BlackElo "2263"]
[Result "1/2-1/2"]
[Round "04"]
[TimeControl "180+1"]
[Date "2022.02.08"]
[WhiteClock "0:00:34"]
[BlackClock "0:00:05"]

1. e4 {[%clk 0:02:57]}  c6 {[%clk 0:02:58]} 2. d4 {[%clk 0:02:57]}  d5 {[%clk 0:02:58]} 3. e5 {[%clk 0:02:56]}  c5 {[%clk 0:02:58]} 4. dxc5 {[%clk 0:02:55]}  e6 {[%clk 0:02:57]} 5. Nf3 {[%clk 0:02:56]}  Bxc5 {[%clk 0:02:55]} 6. Bd3 {[%clk 0:02:56]}  Ne7 {[%clk 0:02:39]} 7. a3 {[%clk 0:02:54]}  Nd7 {[%clk 0:02:35]} 8. b4 {[%clk 0:02:51]}  Bb6 {[%clk 0:02:36]} 9. Bb2 {[%clk 0:02:48]}  a5 {[%clk 0:02:36]} 10. Nbd2 {[%clk 0:02:37]}  Ng6 {[%clk 0:02:35]} 11. g3 {[%clk 0:02:21]}  Qe7 {[%clk 0:02:21]} 12. O-O {[%clk 0:02:13]}  axb4 {[%clk 0:02:06]} 13. axb4 {[%clk 0:02:12]}  Rxa1 {[%clk 0:02:07]} 14. Qxa1 {[%clk 0:02:13]}  Qxb4 {[%clk 0:02:07]} 15. h4 {[%clk 0:02:07]}  Qg4 {[%clk 0:01:54]} 16. Kh2 {[%clk 0:01:57]}  O-O {[%clk 0:01:52]} 17. c4 {[%clk 0:01:48]}  f6 {[%clk 0:01:42]} 18. cxd5 {[%clk 0:01:43]}  Ndxe5 {[%clk 0:01:41]} 19. Nxe5 {[%clk 0:01:41]}  fxe5 {[%clk 0:01:31]} 20. f3 {[%clk 0:01:21]}  Qh5 {[%clk 0:01:13]} 21. Bxg6 {[%clk 0:01:14]}  Qxg6 {[%clk 0:01:13]} 22. Bxe5 {[%clk 0:01:10]}  exd5 {[%clk 0:01:11]} 23. Bd4 {[%clk 0:01:04]}  Bc7 {[%clk 0:01:03]} 24. Rg1 {[%clk 0:01:04]}  Qe6 {[%clk 0:00:53]} 25. Qf1 {[%clk 0:00:53]}  Re8 {[%clk 0:00:37]} 26. Rg2 {[%clk 0:00:53]}  Qh3+ {[%clk 0:00:36]} 27. Kg1 {[%clk 0:00:53]}  Bxg3 {[%clk 0:00:36]} 28. Qb5 {[%clk 0:00:46]}  Re1+ {[%clk 0:00:14]} 29. Nf1 {[%clk 0:00:46]}  h6 {[%clk 0:00:02]} 30. Qxd5+ {[%clk 0:00:43]}  Kh7 {[%clk 0:00:03]} 31. Bc3 {[%clk 0:00:35]}  Rxf1+ {[%clk 0:00:03]} 32. Kxf1 {[%clk 0:00:34]}  Qh1+ {[%clk 0:00:03]} 33. Rg1 {[%clk 0:00:34]}  Bh3+ {[%clk 0:00:04]} 34. Ke2 {[%clk 0:00:35]}  Qxg1 {[%clk 0:00:04]} 35. Qe4+ {[%clk 0:00:34]}  Kg8 {[%clk 0:00:03]} 36. Qe8+ {[%clk 0:00:34]}  Kh7 {[%clk 0:00:04]} 37. Qe4+ {[%clk 0:00:34]}  Kh8 {[%clk 0:00:05]} 38. Qe8+ {[%clk 0:00:33]}  Kh7 {[%clk 0:00:05]} 39. Qe4+ {[%clk 0:00:34]} 1/2-1/2


[Site "https://www.chess.com"]

[Event "Early Titled Tuesday Blitz | February 8 2022"]
[White "Vokhidov, Shamsiddin"]
[Black "Fier, Alexandr"]
[WhiteFideId "14204223"]
[BlackFideId "2107139"]
[WhiteElo "2611"]
[BlackElo "2569"]
[Result "0-1"]
[Round "04"]
[TimeControl "180+1"]
[Date "2022.02.08"]
[WhiteClock "0:00:17"]
[BlackClock "0:01:40"]

1. e4 {[%clk 0:03:00]}  Nf6 {[%clk 0:03:00]} 2. e5 {[%clk 0:03:01]}  Nd5 {[%clk 0:03:00]} 3. d4 {[%clk 0:03:02]}  d6 {[%clk 0:03:01]} 4. Nf3 {[%clk 0:03:03]}  g6 {[%clk 0:03:01]} 5. Bc4 {[%clk 0:03:01]}  Nb6 {[%clk 0:03:01]} 6. Bb3 {[%clk 0:03:01]}  Bg7 {[%clk 0:03:02]} 7. Qe2 {[%clk 0:03:01]}  O-O {[%clk 0:02:59]} 8. e6 {[%clk 0:03:01]}  d5 {[%clk 0:02:56]} 9. Ng5 {[%clk 0:03:00]}  Bxe6 {[%clk 0:02:50]} 10. Nxe6 {[%clk 0:03:01]}  fxe6 {[%clk 0:02:50]} 11. Qxe6+ {[%clk 0:03:02]}  Kh8 {[%clk 0:02:51]} 12. c3 {[%clk 0:03:03]}  Nc6 {[%clk 0:02:34]} 13. f4 {[%clk 0:02:59]}  Qd6 {[%clk 0:02:32]} 14. Qe2 {[%clk 0:02:25]}  e5 {[%clk 0:02:27]} 15. fxe5 {[%clk 0:02:18]}  Nxe5 {[%clk 0:02:28]} 16. dxe5 {[%clk 0:02:16]}  Bxe5 {[%clk 0:02:29]} 17. Nd2 {[%clk 0:01:57]}  Rae8 {[%clk 0:02:28]} 18. Kd1 {[%clk 0:01:53]}  Bxc3 {[%clk 0:02:24]} 19. Qxe8 {[%clk 0:01:49]}  Rxe8 {[%clk 0:02:25]} 20. bxc3 {[%clk 0:01:49]}  c5 {[%clk 0:02:24]} 21. Nf3 {[%clk 0:01:42]}  Nc4 {[%clk 0:02:14]} 22. Bg5 {[%clk 0:01:28]}  Ne3+ {[%clk 0:02:12]} 23. Kd2 {[%clk 0:01:11]}  d4 {[%clk 0:02:11]} 24. Rae1 {[%clk 0:01:03]}  Kg7 {[%clk 0:01:46]} 25. Bxe3 {[%clk 0:00:41]}  dxe3+ {[%clk 0:01:46]} 26. Kc1 {[%clk 0:00:41]}  Qd3 {[%clk 0:01:46]} 27. Kb2 {[%clk 0:00:35]}  e2 {[%clk 0:01:47]} 28. Bc2 {[%clk 0:00:33]}  Qb5+ {[%clk 0:01:47]} 29. Kc1 {[%clk 0:00:33]}  Qc4 {[%clk 0:01:45]} 30. Nd2 {[%clk 0:00:24]}  Qxc3 {[%clk 0:01:45]} 31. Nb1 {[%clk 0:00:24]}  Qe3+ {[%clk 0:01:45]} 32. Kb2 {[%clk 0:00:23]}  c4 {[%clk 0:01:45]} 33. Nc3 {[%clk 0:00:23]}  Qd4 {[%clk 0:01:38]} 34. Ba4 {[%clk 0:00:18]}  Re3 {[%clk 0:01:38]} 35. Rc1 {[%clk 0:00:18]}  e1=Q {[%clk 0:01:38]} 36. Rhxe1 {[%clk 0:00:17]}  Rxe1 {[%clk 0:01:39]} 37. Rxe1 {[%clk 0:00:17]}  Qd2+ {[%clk 0:01:40]} 0-1


[Site "https://www.chess.com"]

[Event "Early Titled Tuesday Blitz | February 8 2022"]
[White "Volkov, Sergey"]
[Black "Rozhkov, Viacheslav"]
[WhiteFideId "4122763"]
[BlackFideId "4181484"]
[WhiteElo "2475"]
[BlackElo "2324"]
[Result "1-0"]
[Round "04"]
[TimeControl "180+1"]
[Date "2022.02.08"]
[WhiteClock "0:00:17"]
[BlackClock "0:00:03"]

1. d4 {[%clk 0:03:00]}  d5 {[%clk 0:02:58]} 2. c4 {[%clk 0:03:01]}  dxc4 {[%clk 0:02:57]} 3. e4 {[%clk 0:03:00]}  Nc6 {[%clk 0:02:57]} 4. Nf3 {[%clk 0:03:00]}  Bg4 {[%clk 0:02:56]} 5. d5 {[%clk 0:02:59]}  Ne5 {[%clk 0:02:55]} 6. Nbd2 {[%clk 0:03:00]}  Bxf3 {[%clk 0:02:26]} 7. Nxf3 {[%clk 0:02:54]}  Nd3+ {[%clk 0:02:12]} 8. Bxd3 {[%clk 0:02:52]}  cxd3 {[%clk 0:02:13]} 9. Qa4+ {[%clk 0:02:48]}  Qd7 {[%clk 0:02:10]} 10. Qxd7+ {[%clk 0:02:47]}  Kxd7 {[%clk 0:02:10]} 11. Ne5+ {[%clk 0:02:47]}  Ke8 {[%clk 0:02:10]} 12. Nxd3 {[%clk 0:02:36]}  Nf6 {[%clk 0:02:10]} 13. f3 {[%clk 0:02:35]}  e6 {[%clk 0:02:05]} 14. dxe6 {[%clk 0:02:35]}  fxe6 {[%clk 0:02:05]} 15. Bf4 {[%clk 0:02:29]}  Rd8 {[%clk 0:01:55]} 16. O-O-O {[%clk 0:02:25]}  c6 {[%clk 0:01:28]} 17. Be3 {[%clk 0:02:18]}  Nd7 {[%clk 0:01:20]} 18. Rd2 {[%clk 0:02:09]}  Nb6 {[%clk 0:01:17]} 19. b3 {[%clk 0:02:01]}  Ba3+ {[%clk 0:01:15]} 20. Kc2 {[%clk 0:02:00]}  Bd6 {[%clk 0:01:05]} 21. Rhd1 {[%clk 0:01:53]}  Be7 {[%clk 0:00:29]} 22. a4 {[%clk 0:01:48]}  h6 {[%clk 0:00:23]} 23. a5 {[%clk 0:01:39]}  Nc8 {[%clk 0:00:23]} 24. Ne5 {[%clk 0:01:32]}  Rxd2+ {[%clk 0:00:18]} 25. Rxd2 {[%clk 0:01:29]}  Bf6 {[%clk 0:00:18]} 26. Nc4 {[%clk 0:01:12]}  Be7 {[%clk 0:00:12]} 27. e5 {[%clk 0:01:03]}  h5 {[%clk 0:00:09]} 28. h3 {[%clk 0:00:57]}  h4 {[%clk 0:00:09]} 29. f4 {[%clk 0:00:54]}  g5 {[%clk 0:00:08]} 30. fxg5 {[%clk 0:00:53]}  Rg8 {[%clk 0:00:08]} 31. Nd6+ {[%clk 0:00:51]}  Bxd6 {[%clk 0:00:08]} 32. exd6 {[%clk 0:00:50]}  Kd7 {[%clk 0:00:09]} 33. Rd4 {[%clk 0:00:47]}  e5 {[%clk 0:00:07]} 34. Rxh4 {[%clk 0:00:46]}  Nxd6 {[%clk 0:00:08]} 35. Rh7+ {[%clk 0:00:42]}  Ke6 {[%clk 0:00:08]} 36. h4 {[%clk 0:00:42]}  Kd5 {[%clk 0:00:08]} 37. h5 {[%clk 0:00:40]}  e4 {[%clk 0:00:08]} 38. g6 {[%clk 0:00:39]}  Nf5 {[%clk 0:00:08]} 39. Bxa7 {[%clk 0:00:38]}  c5 {[%clk 0:00:05]} 40. Rxb7 {[%clk 0:00:37]}  e3 {[%clk 0:00:04]} 41. Rd7+ {[%clk 0:00:20]}  Kc6 {[%clk 0:00:04]} 42. Rd1 {[%clk 0:00:20]}  e2 {[%clk 0:00:03]} 43. Re1 {[%clk 0:00:20]}  Re8 {[%clk 0:00:03]} 44. a6 {[%clk 0:00:17]} 1-0


[Site "https://www.chess.com"]

[Event "Early Titled Tuesday Blitz | February 8 2022"]
[White "Wahedi, Ahmad Siar"]
[Black "Bilan, Danila"]
[WhiteFideId "4651260"]
[BlackFideId "24161918"]
[WhiteElo "2371"]
[BlackElo "2164"]
[Result "0-1"]
[Round "04"]
[TimeControl "180+1"]
[Date "2022.02.08"]
[WhiteClock "0:00:36"]
[BlackClock "0:00:05"]

1. c4 {[%clk 0:03:00]}  c6 {[%clk 0:02:58]} 2. e4 {[%clk 0:02:59]}  d5 {[%clk 0:02:58]} 3. cxd5 {[%clk 0:02:59]}  cxd5 {[%clk 0:02:59]} 4. exd5 {[%clk 0:02:59]}  Nf6 {[%clk 0:02:58]} 5. Nc3 {[%clk 0:02:58]}  Nxd5 {[%clk 0:02:58]} 6. Bc4 {[%clk 0:02:58]}  e6 {[%clk 0:02:53]} 7. Nf3 {[%clk 0:02:57]}  Nc6 {[%clk 0:02:53]} 8. O-O {[%clk 0:02:56]}  Be7 {[%clk 0:02:53]} 9. d4 {[%clk 0:02:56]}  O-O {[%clk 0:02:53]} 10. Re1 {[%clk 0:02:51]}  Bf6 {[%clk 0:02:53]} 11. Nxd5 {[%clk 0:02:48]}  exd5 {[%clk 0:02:52]} 12. Bb3 {[%clk 0:02:48]}  Bg4 {[%clk 0:02:46]} 13. Be3 {[%clk 0:02:46]}  Re8 {[%clk 0:02:33]} 14. h3 {[%clk 0:02:46]}  Bh5 {[%clk 0:02:33]} 15. g4 {[%clk 0:02:45]}  Bg6 {[%clk 0:02:31]} 16. Qd2 {[%clk 0:02:41]}  h5 {[%clk 0:02:08]} 17. g5 {[%clk 0:02:35]}  Be7 {[%clk 0:02:08]} 18. h4 {[%clk 0:02:35]}  Bb4 {[%clk 0:02:07]} 19. Qd1 {[%clk 0:02:29]}  Bxe1 {[%clk 0:02:06]} 20. Nxe1 {[%clk 0:02:27]}  Re4 {[%clk 0:01:59]} 21. Ng2 {[%clk 0:02:26]}  Qd7 {[%clk 0:01:55]} 22. Nf4 {[%clk 0:02:09]}  Nxd4 {[%clk 0:01:22]} 23. Nxd5 {[%clk 0:01:54]}  Qg4+ {[%clk 0:01:02]} 24. Qxg4 {[%clk 0:01:53]}  Rxg4+ {[%clk 0:01:02]} 25. Kh2 {[%clk 0:01:44]}  Rxh4+ {[%clk 0:00:50]} 26. Kg3 {[%clk 0:01:37]}  Rg4+ {[%clk 0:00:44]} 27. Kh3 {[%clk 0:01:37]}  Nxb3 {[%clk 0:00:42]} 28. axb3 {[%clk 0:01:34]}  a6 {[%clk 0:00:42]} 29. Rc1 {[%clk 0:01:23]}  Rd8 {[%clk 0:00:21]} 30. Nf4 {[%clk 0:01:22]}  Rxg5 {[%clk 0:00:17]} 31. Ne6 {[%clk 0:01:11]}  Bf5+ {[%clk 0:00:14]} 32. Kh2 {[%clk 0:01:10]}  Bxe6 {[%clk 0:00:14]} 33. Bxg5 {[%clk 0:01:09]}  Rd3 {[%clk 0:00:14]} 34. b4 {[%clk 0:01:06]}  Rb3 {[%clk 0:00:12]} 35. Be3 {[%clk 0:00:53]}  Rxb4 {[%clk 0:00:11]} 36. Rc2 {[%clk 0:00:50]}  Kh7 {[%clk 0:00:11]} 37. Rd2 {[%clk 0:00:50]}  Kg6 {[%clk 0:00:10]} 38. Bd4 {[%clk 0:00:50]}  Kf5 {[%clk 0:00:10]} 39. Bc3 {[%clk 0:00:50]}  Rb5 {[%clk 0:00:06]} 40. Bxg7 {[%clk 0:00:46]}  Rb3 {[%clk 0:00:03]} 41. Bc3 {[%clk 0:00:46]}  b5 {[%clk 0:00:04]} 42. Rd4 {[%clk 0:00:45]}  Kg6 {[%clk 0:00:03]} 43. Rd8 {[%clk 0:00:44]}  b4 {[%clk 0:00:03]} 44. Bd4 {[%clk 0:00:44]}  a5 {[%clk 0:00:03]} 45. Ra8 {[%clk 0:00:43]}  Rd3 {[%clk 0:00:04]} 46. Be3 {[%clk 0:00:43]}  Rd5 {[%clk 0:00:04]} 47. Rg8+ {[%clk 0:00:41]}  Kf5 {[%clk 0:00:04]} 48. Rg5+ {[%clk 0:00:40]}  Ke4 {[%clk 0:00:05]} 49. Rg8 {[%clk 0:00:39]}  Kd3 {[%clk 0:00:04]} 50. Ra8 {[%clk 0:00:39]}  Kc2 {[%clk 0:00:04]} 51. b3 {[%clk 0:00:38]}  Kxb3 {[%clk 0:00:04]} 52. Kg3 {[%clk 0:00:39]}  Ka2 {[%clk 0:00:03]} 53. Bb6 {[%clk 0:00:36]}  b3 {[%clk 0:00:04]} 54. Rxa5+ {[%clk 0:00:35]}  Rxa5 {[%clk 0:00:04]} 55. Bxa5 {[%clk 0:00:36]}  b2 {[%clk 0:00:05]} 0-1


[Site "https://www.chess.com"]

[Event "Early Titled Tuesday Blitz | February 8 2022"]
[White "Warchol, Kamil"]
[Black "Vivas Zamora, Fabian Ernesto"]
[WhiteFideId "21858241"]
[BlackFideId "3902480"]
[WhiteElo "1905"]
[BlackElo "1966"]
[Result "1-0"]
[Round "04"]
[TimeControl "180+1"]
[Date "2022.02.08"]
[WhiteClock "0:00:12"]
[BlackClock "0:00:04"]

1. e4 {[%clk 0:03:00]}  e5 {[%clk 0:02:57]} 2. Nf3 {[%clk 0:02:59]}  Nc6 {[%clk 0:02:55]} 3. Bc4 {[%clk 0:02:59]}  Nf6 {[%clk 0:02:52]} 4. d3 {[%clk 0:02:59]}  Bc5 {[%clk 0:02:52]} 5. c3 {[%clk 0:02:59]}  O-O {[%clk 0:02:52]} 6. Nbd2 {[%clk 0:02:58]}  d5 {[%clk 0:02:51]} 7. exd5 {[%clk 0:02:57]}  Nxd5 {[%clk 0:02:52]} 8. Ne4 {[%clk 0:02:56]}  Be7 {[%clk 0:02:41]} 9. O-O {[%clk 0:02:56]}  Bg4 {[%clk 0:02:22]} 10. h3 {[%clk 0:02:53]}  Bh5 {[%clk 0:02:21]} 11. Ng3 {[%clk 0:02:52]}  Bg6 {[%clk 0:02:16]} 12. Re1 {[%clk 0:02:52]}  Qd6 {[%clk 0:01:54]} 13. a4 {[%clk 0:02:21]}  a6 {[%clk 0:01:46]} 14. a5 {[%clk 0:02:20]}  Rad8 {[%clk 0:01:35]} 15. Qb3 {[%clk 0:02:17]}  Qc5 {[%clk 0:01:10]} 16. Qxb7 {[%clk 0:01:46]}  Nxa5 {[%clk 0:01:05]} 17. Qxa6 {[%clk 0:01:45]}  Ra8 {[%clk 0:00:40]} 18. Qb5 {[%clk 0:01:17]}  Qxb5 {[%clk 0:00:14]} 19. Bxb5 {[%clk 0:01:15]}  f6 {[%clk 0:00:13]} 20. d4 {[%clk 0:01:04]}  c6 {[%clk 0:00:11]} 21. Bf1 {[%clk 0:01:02]}  exd4 {[%clk 0:00:08]} 22. Nxd4 {[%clk 0:01:01]}  Bc5 {[%clk 0:00:08]} 23. Ne6 {[%clk 0:00:52]}  Rfe8 {[%clk 0:00:07]} 24. b4 {[%clk 0:00:52]}  Nxc3 {[%clk 0:00:01]} 25. bxc5 {[%clk 0:00:44]}  Bf7 {[%clk 0:00:01]} 26. Bb2 {[%clk 0:00:36]}  Nd5 {[%clk 0:00:01]} 27. Nd4 {[%clk 0:00:33]}  Rxe1 {[%clk 0:00:01]} 28. Rxe1 {[%clk 0:00:32]}  Nc4 {[%clk 0:00:02]} 29. Bc1 {[%clk 0:00:32]}  Nb4 {[%clk 0:00:03]} 30. Ngf5 {[%clk 0:00:28]}  Ne5 {[%clk 0:00:03]} 31. Bd2 {[%clk 0:00:24]}  Nd5 {[%clk 0:00:02]} 32. Ne3 {[%clk 0:00:22]}  Nxe3 {[%clk 0:00:02]} 33. Bxe3 {[%clk 0:00:21]}  g5 {[%clk 0:00:02]} 34. Nf5 {[%clk 0:00:20]}  h5 {[%clk 0:00:01]} 35. Nd6 {[%clk 0:00:20]}  Kg7 {[%clk 0:00:02]} 36. Nxf7 {[%clk 0:00:19]}  Kxf7 {[%clk 0:00:03]} 37. Be2 {[%clk 0:00:19]}  h4 {[%clk 0:00:03]} 38. Bd4 {[%clk 0:00:18]}  Ng6 {[%clk 0:00:02]} 39. Bf3 {[%clk 0:00:18]}  Ra6 {[%clk 0:00:02]} 40. Bh5 {[%clk 0:00:17]}  Kg7 {[%clk 0:00:02]} 41. Bxg6 {[%clk 0:00:16]}  Kxg6 {[%clk 0:00:03]} 42. Re6 {[%clk 0:00:16]}  Kf5 {[%clk 0:00:04]} 43. Rd6 {[%clk 0:00:16]}  Ke4 {[%clk 0:00:04]} 44. Bxf6 {[%clk 0:00:15]}  g4 {[%clk 0:00:04]} 45. hxg4 {[%clk 0:00:15]}  Kf4 {[%clk 0:00:04]} 46. g5 {[%clk 0:00:15]}  Kg4 {[%clk 0:00:04]} 47. g6 {[%clk 0:00:13]}  Ra1+ {[%clk 0:00:03]} 48. Kh2 {[%clk 0:00:13]}  Ra8 {[%clk 0:00:03]} 49. g7 {[%clk 0:00:12]}  Rg8 {[%clk 0:00:04]} 50. Rd8 {[%clk 0:00:12]} 1-0


[Site "https://www.chess.com"]

[Event "Early Titled Tuesday Blitz | February 8 2022"]
[White "Weetik, Vjacheslav"]
[Black "Rangel, Daniel"]
[WhiteFideId "4153472"]
[BlackFideId "2124475"]
[WhiteElo "2469"]
[BlackElo "2187"]
[Result "1/2-1/2"]
[Round "04"]
[TimeControl "180+1"]
[Date "2022.02.08"]
[WhiteClock "0:00:10"]
[BlackClock "0:00:08"]

1. d4 {[%clk 0:02:58]}  Nf6 {[%clk 0:02:59]} 2. Bf4 {[%clk 0:02:58]}  g6 {[%clk 0:03:00]} 3. Nf3 {[%clk 0:02:57]}  Bg7 {[%clk 0:03:00]} 4. Nc3 {[%clk 0:02:56]}  O-O {[%clk 0:02:59]} 5. e4 {[%clk 0:02:48]}  d5 {[%clk 0:02:59]} 6. e5 {[%clk 0:02:45]}  Ne4 {[%clk 0:02:58]} 7. Bd3 {[%clk 0:02:43]}  Nxc3 {[%clk 0:02:56]} 8. bxc3 {[%clk 0:02:43]}  c5 {[%clk 0:02:57]} 9. h3 {[%clk 0:02:41]}  c4 {[%clk 0:02:52]} 10. Be2 {[%clk 0:02:39]}  Qa5 {[%clk 0:02:46]} 11. Qd2 {[%clk 0:02:36]}  Bf5 {[%clk 0:02:44]} 12. g4 {[%clk 0:02:15]}  Be4 {[%clk 0:02:43]} 13. O-O {[%clk 0:02:14]}  f6 {[%clk 0:02:18]} 14. Bg3 {[%clk 0:01:52]}  Nc6 {[%clk 0:02:11]} 15. Nh2 {[%clk 0:01:34]}  fxe5 {[%clk 0:01:49]} 16. f3 {[%clk 0:01:34]}  Nxd4 {[%clk 0:01:35]} 17. fxe4 {[%clk 0:01:33]}  Qxc3 {[%clk 0:01:33]} 18. Qxc3 {[%clk 0:01:02]}  Nxe2+ {[%clk 0:01:32]} 19. Kg2 {[%clk 0:01:01]}  Nxc3 {[%clk 0:01:32]} 20. exd5 {[%clk 0:01:02]}  Nxd5 {[%clk 0:01:31]} 21. Rfe1 {[%clk 0:00:56]}  Nf4+ {[%clk 0:01:26]} 22. Bxf4 {[%clk 0:00:52]}  exf4 {[%clk 0:01:27]} 23. Rab1 {[%clk 0:00:50]}  e5 {[%clk 0:01:20]} 24. Rxb7 {[%clk 0:00:46]}  Rfb8 {[%clk 0:01:07]} 25. Rc7 {[%clk 0:00:40]}  Rc8 {[%clk 0:01:03]} 26. Rb7 {[%clk 0:00:40]}  Rab8 {[%clk 0:01:02]} 27. Rxa7 {[%clk 0:00:40]}  Rb2 {[%clk 0:01:02]} 28. Re2 {[%clk 0:00:36]}  e4 {[%clk 0:00:50]} 29. Rxe4 {[%clk 0:00:36]}  Rxc2+ {[%clk 0:00:51]} 30. Kh1 {[%clk 0:00:36]}  c3 {[%clk 0:00:45]} 31. Ree7 {[%clk 0:00:30]}  Bd4 {[%clk 0:00:30]} 32. Nf3 {[%clk 0:00:29]}  Rd2 {[%clk 0:00:21]} 33. Nxd4 {[%clk 0:00:20]}  Rxd4 {[%clk 0:00:17]} 34. Rg7+ {[%clk 0:00:20]}  Kf8 {[%clk 0:00:16]} 35. Rxh7 {[%clk 0:00:19]}  Rd1+ {[%clk 0:00:14]} 36. Kg2 {[%clk 0:00:19]}  Kg8 {[%clk 0:00:09]} 37. Rhg7+ {[%clk 0:00:18]}  Kh8 {[%clk 0:00:08]} 38. Rh7+ {[%clk 0:00:18]}  Kg8 {[%clk 0:00:09]} 39. Rhg7+ {[%clk 0:00:16]}  Kf8 {[%clk 0:00:08]} 40. Rh7 {[%clk 0:00:10]}  Kg8 {[%clk 0:00:08]} 1/2-1/2


[Site "https://www.chess.com"]

[Event "Early Titled Tuesday Blitz | February 8 2022"]
[White "Yang, Kaiqi"]
[Black "Jumabayev, Rinat"]
[WhiteFideId "8604398"]
[BlackFideId "13702661"]
[WhiteElo "2373"]
[BlackElo "2561"]
[Result "0-1"]
[Round "04"]
[TimeControl "180+1"]
[Date "2022.02.08"]
[WhiteClock "0:00:01"]
[BlackClock "0:00:55"]

1. c4 {[%clk 0:03:00]}  e5 {[%clk 0:02:55]} 2. Nc3 {[%clk 0:02:56]}  Nf6 {[%clk 0:02:53]} 3. Nf3 {[%clk 0:02:56]}  Nc6 {[%clk 0:02:53]} 4. e4 {[%clk 0:02:57]}  Bb4 {[%clk 0:02:52]} 5. d3 {[%clk 0:02:56]}  d6 {[%clk 0:02:52]} 6. a3 {[%clk 0:02:55]}  Bc5 {[%clk 0:02:52]} 7. b4 {[%clk 0:02:54]}  Bb6 {[%clk 0:02:53]} 8. Na4 {[%clk 0:02:55]}  O-O {[%clk 0:02:50]} 9. Nxb6 {[%clk 0:02:52]}  axb6 {[%clk 0:02:51]} 10. Bb2 {[%clk 0:02:52]}  Bg4 {[%clk 0:02:49]} 11. Be2 {[%clk 0:02:52]}  Nd7 {[%clk 0:02:48]} 12. b5 {[%clk 0:02:43]}  Bxf3 {[%clk 0:02:47]} 13. Bxf3 {[%clk 0:02:41]}  Nd4 {[%clk 0:02:46]} 14. Bg4 {[%clk 0:02:37]}  Nc5 {[%clk 0:02:46]} 15. O-O {[%clk 0:02:30]}  c6 {[%clk 0:02:44]} 16. f4 {[%clk 0:01:52]}  cxb5 {[%clk 0:02:36]} 17. cxb5 {[%clk 0:01:44]}  Nxb5 {[%clk 0:02:36]} 18. Kh1 {[%clk 0:01:26]}  Nd4 {[%clk 0:02:34]} 19. Bxd4 {[%clk 0:01:18]}  exd4 {[%clk 0:02:35]} 20. Rf3 {[%clk 0:01:18]}  Ra5 {[%clk 0:02:25]} 21. Rh3 {[%clk 0:01:16]}  Qf6 {[%clk 0:02:25]} 22. Rh5 {[%clk 0:00:39]}  Qxf4 {[%clk 0:02:17]} 23. Rf5 {[%clk 0:00:29]}  Qe3 {[%clk 0:02:16]} 24. Rf3 {[%clk 0:00:28]}  Qg5 {[%clk 0:02:16]} 25. Rf5 {[%clk 0:00:22]}  Qe7 {[%clk 0:02:16]} 26. Qf3 {[%clk 0:00:19]}  g6 {[%clk 0:02:09]} 27. Rf6 {[%clk 0:00:18]}  Kg7 {[%clk 0:02:06]} 28. Rf1 {[%clk 0:00:18]}  Rxa3 {[%clk 0:02:07]} 29. Qh3 {[%clk 0:00:09]}  Rxd3 {[%clk 0:02:04]} 30. Qh4 {[%clk 0:00:10]}  Qe5 {[%clk 0:01:54]} 31. R1f5 {[%clk 0:00:06]}  Qxe4 {[%clk 0:01:45]} 32. h3 {[%clk 0:00:02]}  Re3 {[%clk 0:01:32]} 33. Kh2 {[%clk 0:00:01]}  gxf5 {[%clk 0:00:55]} 34. Qh6+ {[%clk 0:00:01]}  Kg8 {[%clk 0:00:55]} 35. Bxf5 {[%clk 0:00:01]}  Qe5+ {[%clk 0:00:56]} 36. Kg1 {[%clk 0:00:02]}  Re1+ {[%clk 0:00:54]} 37. Kf2 {[%clk 0:00:01]}  Qe3+ {[%clk 0:00:54]} 38. Qxe3 {[%clk 0:00:01]}  Rxe3 {[%clk 0:00:55]} 0-1


[Site "https://www.chess.com"]

[Event "Early Titled Tuesday Blitz | February 8 2022"]
[White "Yuan, Qingyu"]
[Black "Tymrakiewicz, Rafal"]
[WhiteFideId "8609772"]
[BlackFideId "1108832"]
[WhiteElo "2359"]
[BlackElo "2205"]
[Result "1-0"]
[Round "04"]
[TimeControl "180+1"]
[Date "2022.02.08"]
[WhiteClock "0:00:41"]
[BlackClock "0:00:07"]

1. Nf3 {[%clk 0:03:00]}  Nf6 {[%clk 0:02:59]} 2. g3 {[%clk 0:03:00]}  g6 {[%clk 0:02:59]} 3. b3 {[%clk 0:03:00]}  Bg7 {[%clk 0:03:00]} 4. Bb2 {[%clk 0:03:00]}  d6 {[%clk 0:02:57]} 5. d4 {[%clk 0:03:00]}  O-O {[%clk 0:02:57]} 6. Bg2 {[%clk 0:03:01]}  Nc6 {[%clk 0:02:45]} 7. O-O {[%clk 0:02:58]}  Bg4 {[%clk 0:02:44]} 8. h3 {[%clk 0:02:55]}  Bxf3 {[%clk 0:02:39]} 9. Bxf3 {[%clk 0:02:55]}  Nd7 {[%clk 0:02:39]} 10. Bg2 {[%clk 0:02:49]}  e5 {[%clk 0:02:39]} 11. dxe5 {[%clk 0:02:41]}  Bxe5 {[%clk 0:02:35]} 12. Qc1 {[%clk 0:02:36]}  Qf6 {[%clk 0:02:29]} 13. Bxe5 {[%clk 0:02:36]}  Ndxe5 {[%clk 0:02:27]} 14. Nd2 {[%clk 0:02:34]}  Qe7 {[%clk 0:02:23]} 15. Qb2 {[%clk 0:02:31]}  f5 {[%clk 0:02:18]} 16. e3 {[%clk 0:02:29]}  Nf7 {[%clk 0:02:07]} 17. Nf3 {[%clk 0:02:23]}  Nfe5 {[%clk 0:01:16]} 18. Rad1 {[%clk 0:02:17]}  Nxf3+ {[%clk 0:01:16]} 19. Bxf3 {[%clk 0:02:17]}  Qf6 {[%clk 0:00:57]} 20. c3 {[%clk 0:01:49]}  g5 {[%clk 0:00:54]} 21. Rfe1 {[%clk 0:01:29]}  Ne5 {[%clk 0:00:42]} 22. Bxb7 {[%clk 0:01:28]}  Rab8 {[%clk 0:00:30]} 23. Bd5+ {[%clk 0:01:28]}  Kg7 {[%clk 0:00:28]} 24. Rd4 {[%clk 0:01:21]}  c5 {[%clk 0:00:20]} 25. Rdd1 {[%clk 0:01:02]}  f4 {[%clk 0:00:20]} 26. exf4 {[%clk 0:01:01]}  gxf4 {[%clk 0:00:20]} 27. Qe2 {[%clk 0:00:51]}  fxg3 {[%clk 0:00:20]} 28. fxg3 {[%clk 0:00:51]}  Qg5 {[%clk 0:00:17]} 29. Qe3 {[%clk 0:00:45]}  Nf3+ {[%clk 0:00:13]} 30. Bxf3 {[%clk 0:00:43]}  Qxg3+ {[%clk 0:00:11]} 31. Bg2 {[%clk 0:00:43]}  Rf1+ {[%clk 0:00:06]} 32. Kxf1 {[%clk 0:00:42]}  Qh2 {[%clk 0:00:07]} 33. Qg5+ {[%clk 0:00:41]}  Kh8 {[%clk 0:00:06]} 34. Qf6+ {[%clk 0:00:41]}  Kg8 {[%clk 0:00:07]} 35. Bd5# {[%clk 0:00:41]} 1-0


[Site "https://www.chess.com"]